Workbook

Sheet Sheet1
A1: INSTRUCTIONS: Use this form when a single information collection document involves multiple reporting and recordkeeping requirements. The totals of the figures in cols. should be entered in item 13 of OMB-83-I: cols. (D) &/or (I) = 13a (respondent is only counted once); cols. F & I = 13b; cols. H & K = 13c. (F)Total/(D)Total = (E)Average (H)Total/(F)Total = (G)Average (K)Total/(I)Total = (J)Average NOTE: The columns will calculate automatically. If Col. E's response is something other than annually, i.e., 1/6 years, list as "1/6" & decimal will display. | I1: TITLE OF INFORMATION COLLECTION DOCUMENT | O1: OMB NO. | P1: 0560-0309
I3: Emergency Relief Program (ERP) Phase 1 and 2
O4: DATE PREPARED
O7: 2023-01-25
A10: IDENTIFICATION OF REPORTING OR RECORDKEEPING REQUIREMENT | H10: ANNUAL BURDEN
H12: REPORTS | N12: RECORDS | Q12: RESPONDENT COST
L14: TOTAL BURDEN HOURS | P14: TOTAL
G15: FORMS NO (S) | H15: NO. OF | I15: NO OF | J15: TOTAL ANNUAL | K15: HOURS | L15: (Col. F x G) | N15: NO. OF | O15: ANNUAL | P15: RECORD- | Q15: COST | R15: TOTAL
A16: SECTION OF | B16: DESCRIPTION | G16: (If "none" | H16: RESPONDENTS | I16: RESPONSES | J16: RESPONSES | K16: PER | L16: (H) | N16: RECORD- | O16: HOURS PER | P16: KEEPING HOURS | Q16: PER | R16: COST
A17: REGS. | G17: so state) | I17: PER | J17: (Col. D x E) | K17: RESPONSE | N17: KEEPERS | O17: RECORD- | P17: (Col. I x J) | Q17: HOUR | R17: (Col. H x L)
I18: RESPONDENT | L18: EXEMPT | M18: NON-EXEMPT | O18: KEEPER
A19: (A) | B19: (B) | G19: (C) | H19: (D) | I19: (E) | J19: (F) | K19: (G) | N19: (I) | O19: (J) | P19: (K) | Q19: (L) | R19: (M)
A20: 7 CFR 760, subpart S | B20: Emergency Relief Program (ERP) Phase 1 Application | G20: FSA-520 | H20: 305,000 | I20: 1 | J20: =SUM(H20*I20) -> 305,000 | K20: 0.25 | M20: =SUM(J20*K20) -> 76,250 | Q20: $50.38 | R20: =SUM(M20*Q20) -> 3,841,475
A21: 7 CFR 760, subpart S | B21: Customer Data Worksheet - ERP Phase 1 | G21: AD-2047 | H21: 100 | I21: 1 | J21: 100 | K21: 1.00 | M21: 100 | Q21: $50.38 | R21: 5,038
A22: 7 CFR part 1400 | B22: Farm Operating Plan - ERP Phase 1 | G22: CCC-902 | H22: 1,000 | I22: 1 | J22: 1,000 | K22: 0.08 | M22: 80 | Q22: $50.38 | R22: 4,030
A23: 7 CFR part 1400 | B23: Member Information for Legal Entities - ERP Phase 1 | G23: CCC-901 | H23: 1,000 | I23: 1 | J23: 1,000 | K23: 0.08 | M23: 80 | Q23: $50.38 | R23: 4,030
A24: 7 CFR part 2 | B24: Highly Erodible Land Conservation (HELC) and Wetland Conservation (WC) Certification (exempt from PRA 16 U.S.C. 3846) - ERP Phase 1 | G24: AD-1026 | H24: 1,000 | I24: 1 | J24: 1,000 | K24: 0.08 | M24: 80 | Q24: $50.38 | R24: 4,030
A25: 7 CFR 760, subpart S | B25: Socially Disadvantaged, Limited Resource, Beginning and Veteran Farmer or Rancher Certification - ERP Phase 1 | G25: CCC-860 | H25: 150,000 | I25: 1 | J25: 150,000 | K25: 0.10 | M25: 15,000 | Q25: $50.38 | R25: 755,700
A26: 7 CFR 760, subpart S | B26: Request for an Exception to the $125,000 Payment Limitation for Certain Programs - ERP Phase 1 | G26: FSA-510 | H26: 9,000 | I26: 1 | J26: 9,000 | K26: 0.08 | M26: 720 | Q26: $50.38 | R26: =SUM(M26*Q26) -> 36,274
A27: 7 CFR 760, subpart S | B27: Emergency Relief Program Phase 2 (ERP Phase 2) Application | G27: FSA-521 | H27: 48,402 | I27: 1 | J27: =SUM(H27*I27) -> 48,402 | K27: 1.00 | M27: =SUM(J27*K27) -> 48,402 | Q27: $50.38 | R27: 2,438,493
A28: 7 CFR part 1400 | B28: Farm Operating Plan for an Individual (Parts A & B) - ERP Phase 2 | G28: CCC-902I | H28: =H27*0.4 -> 19,361 | I28: 1 | J28: 19,361 | K28: =5/60 -> 0.08 | M28: 1,613 | Q28: $50.38 | R28: 81,283
A29: 7 CFR part 1400 | B29: Farm Operating Plan for an Entity (Parts A & B) - ERP Phase 2 | G29: CCC-902E | H29: =H27*0.4 -> 19,361 | I29: 1 | J29: 19,361 | K29: =5/60 -> 0.08 | M29: 1,613 | Q29: $50.38 | R29: 81,283
A30: 7 CFR 760, subpart S | B30: Request for An Exception to the $125,000 Payment Limitation for Certain Programs - ERP Phase 2 | G30: FSA-510 | H30: =H27*0.03 -> 1,452 | I30: 1 | J30: 1,452 | K30: 0.08 | M30: 116 | Q30: $50.38 | R30: 5,852
A31: 7 CFR part 1400 | B31: Member Information for Legal Entities, if applicable - ERP Phase 2 | G31: CCC-901 | H31: =H27*0.05 -> 2,420 | I31: 1 | J31: 2,420 | K31: =5/60 -> 0.08 | M31: 202 | Q31: $50.38 | R31: 10,160
A32: 7 CFR part 2 | B32: Highly Erodible Land Conservation (HELC) and Wetland Conservation Certification (exempt from PRA 16 U.S.C. 3846) - ERP Phase 2 | G32: AD-1026 | H32: =H27*0.005 -> 242 | I32: 1 | J32: 242 | K32: =5/60 -> 0.08 | M32: 20 | Q32: $50.38 | R32: 1,016
A33: 7 CFR 760, subpart S | B33: Emergency Relief Program Phase 2 (ERP Phase 2) Allowable Revenue Worksheet - ERP Phase 2 | G33: FSA-521A | H33: =H27*0.05 -> 2,420 | I33: 1 | J33: 2,420 | K33: 1.00 | M33: 2,420 | Q33: $50.38 | R33: 121,925
A34: 7 CFR 760, subpart S | B34: Socially Disadvantaged, Limited Resource, Beginning and Veteran Farmer or Rancher Certification - ERP Phase 2 | G34: FSA-860 | H34: =H27*0.1 -> 4,840 | I34: 1 | J34: 4,840 | K34: 0.10 | M34: 484 | Q34: $50.38 | R34: 24,385
A35: 7 CFR 760, subpart S | B35: Customer Data Worksheet - ERP Phase 2 | G35: AD-2047 | H35: =H27*0.05 -> 2,420 | I35: 1 | J35: 2,420 | K35: 0.05 | M35: 121 | Q35: $50.38 | R35: 6,096
A36: 7 CFR 760, subpart S | B36: Crop Insurance and/or NAP Coverage Agreement - ERP Phase 2 | G36: FSA-522 | H36: 48,402 | I36: 1 | J36: =SUM(H36*I36) -> 48,402 | K36: =10/60 -> 0.17 | M36: =SUM(J36*K36) -> 8,067 | Q36: $50.38 | R36: 406,415
B37: SUBTOTAL | J37: 405,918 | L37: =SUM(L20:L24) -> 0 | M37: 147,302 | P37: =SUM(P20:P36) -> 0.00 | R37: =SUM(R20:R36) -> 7,827,487
B38: TOTAL OF ALL PAGES | J38: 405,918 | L38: =SUM(L37) -> 0 | M38: =SUM(M37) -> 147,302 | P38: =SUM(P37) -> 0.00 | R38: =SUM(R37) -> 7,827,487
A39: TOTAL - COLUMNS "F" AND "I" = OMB 83-I, 13b; COLUMNS "H" AND "K" = OMB 83-I, 13c | J39: =SUM(J38+N38) -> 405,918 | M39: =SUM(M38+P38) -> 147,302
